Cogmind - Beta 11.1 @@@ ROGUE MODE // 2022.05.21 @ 21:42:37 Player: Smie Result: Destroyed by as-05210 with Assembled Blade Performance ------------- Evolutions (0) 0 Regions Visited (2) 400 Robots Destroyed (11) 55 Value Destroyed (191) 191 Prototype IDs (0) 0 Alien Tech Used (0) 0 Bonus (0) 0 TOTAL SCORE: 646 Bonus ------- None Cogmind --------- Core Integrity 0/250 Matter 280/300 Energy 71/100 System Corruption 0% Temperature Cool (0) Movement Rolling (100) Location -10/Mines Parts ------- > --- POWER (1) -------- (None) > --- PROPULSION (2) --- Compact Wheel > --- UTILITY (2) ------ Small Storage Unit > --- WEAPON (2) ------- (None) > --- INVENTORY (8) ---- Ion Engine Light Ion Engine Aluminum Leg Aluminum Leg Medium Storage Unit Small Laser Light Assault Rifle Welding Torch Peak State ------------ > --- POWER ------------ Light Ion Engine > --- PROPULSION ------- Light Treads Light Treads > --- UTILITY ---------- Small Storage Unit Medium Storage Unit > --- WEAPON ----------- Medium Laser Medium Laser > --- INVENTORY -------- Ion Engine Light Ion Engine Aluminum Leg Aluminum Leg Wheel Compact Wheel Small Laser Light Assault Rifle [Rating: 7] Favorites ----------- Power Light Ion Engine Engine Light Ion Engine Propulsion Light Treads Treads Light Treads Wheel Compact Wheel Utility Medium Storage Unit Storage Medium Storage Unit Weapon Medium Laser Energy Gun Medium Laser Build | -11 -10 -10 ------- Run | Scr Mat Min Slots Evolved . | . . . Power . | . . . Propulsion . | . . . Utility . | . . . Weapon . | . . . Parts Attached 12 | 6 3 3 Power 2 | 1 1 . Engine 2 | 1 1 . Core . | . . . Reactor . | . . . Propulsion 4 | 2 . 2 Treads 2 | 2 . . Leg . | . . . Wheel 2 | . . 2 Hover . | . . . Flight . | . . . Utility 3 | 1 1 1 Device . | . . . Storage 3 | 1 1 1 Processor . | . . . Hackware . | . . . Protection . | . . . Artifact . | . . . Weapon 3 | 2 1 . Energy Gun 3 | 2 1 . Energy Cannon . | . . . Ballistic Gun . | . . . Ballistic Cannon . | . . . Launcher . | . . . Special Weapon . | . . . Impact Weapon . | . . . Slashing Weapon . | . . . Piercing Weapon . | . . . Special Melee Weapon . | . . . Unidentified Prototypes . | . . . Parts Lost 6 | . . 6 Power 1 | . . 1 Propulsion 3 | . . 3 Utility . | . . . Weapon 2 | . . 2 Highest Loss Streak 6 | . . 6 To Critical Strikes . | . . . Average Slot Usage (%) 83 | . 85 68 Engine 13 | . 14 7 Treads 27 | . 28 21 Storage 14 | . 14 14 Energy Gun 27 | . 28 18 Naked Turns . | . . . Heaviest Build 17 | 11 17 17 Greatest Support 40 | 40 40 40 Greatest Overweight (x) . | . . . Average Overweight (x) . | . . . Largest Inventory Capacity 10 | 8 10 10 Average Capacity 9 | 6 9 9 Most Carried 10 | 6 10 10 Average Carried 8 | 3 9 9 Final Capacity 10 | 8 10 8 Final Carried 10 | 6 10 8 Class Distribution -------------------- 100% | Mutant Dominant Class ---------------- Mutant | -10/Materials Mutant | -10/Mines Resources | -11 -10 -10 ----------- Run | Scr Mat Min Matter Collected 290 | 194 96 . Remotely . | . . . Salvage Created 441 | . 441 . Parts 16 | . 16 . Haulers Intercepted 1 | . 1 . Recyclers Shooed 1 | . 1 . Parts Field Recycled . | . . . Retrieved Matter . | . . . Parts Self-Destructed . | . . . Prevented . | . . . Kills | -11 -10 -10 ------- Run | Scr Mat Min Combat Hostiles Destroyed 6 | . 6 . Guns 5 | . 5 . Classes Destroyed 5 | . 5 . Hauler 1 | . 1 . Recycler 2 | . 2 . Watcher 2 | . 2 . Swarmer 3 | . 3 . Grunt 3 | . 3 . Best Kill Streak 5 | . 5 . Combat Bots Only 4 | . 4 . Max Kills in Single Turn 1 | . 1 . Gunslinging . | . . . Exploded . | . . . Melee . | . . . Uniques/NPCs Destroyed . | . . . Combat | -11 -10 -10 -------- Run | Scr Mat Min Damage Taken 890 | . 166 724 Core 280 | . 24 256 Absorbed by Shields . | . . . Core Remaining (%) 100 | 100 . . Volleys Fired 33 | . 33 . Largest 2 | . 2 . Hottest 100 | . 100 . Shots Fired 66 | . 66 . Gun 66 | . 66 . Cannon . | . . . Launcher . | . . . Special . | . . . Kinetic . | . . . Thermal 66 | . 66 . Explosive . | . . . Electromagnetic . | . . . Robot Hit Streak 13 | . 13 . Robot Miss Streak 2 | . 2 . Penetration Max . | . . . Secondary Targets . | . . . Shots Hit Robots 45 | . 45 . Core Hits 16 | . 16 . Critical Kills . | . . . Critical Parts Destroyed . | . . . Critical Strikes 6 | . 6 . Burn 6 | . 6 . Melee Attacks . | . . . Impact . | . . . Slashing . | . . . Piercing . | . . . Sneak Attacks . | . . . Combat Hostiles . | . . . Follow-up Attacks . | . . . Damage Inflicted 570 | . 570 . Guns 570 | . 570 . Cannons . | . . . Explosions . | . . . Melee . | . . . Ramming . | . . . Kinetic . | . . . Thermal 570 | . 570 . Explosive . | . . . Electromagnetic . | . . . Impact . | . . . Slashing . | . . . Piercing . | . . . Highest Corruption . | . . . Average Corruption . | . . . Corruption Purged . | . . . Corruption Blocked . | . . . Overload Shots . | . . . Overflow Damage . | . . . Projectiles . | . . . Explosions . | . . . Melee . | . . . Knockbacks . | . . . Impact . | . . . Kinetic . | . . . Secondary . | . . . Self-Inflicted Damage . | . . . Shots . | . . . Rammed . | . . . Targets Rammed . | . . . Kicked . | . . . Crushed . | . . . Highest Temperature 324 | . 324 . Average Temperature 116 | . 116 . Received Heat Transfer 42 | . 42 . Effects 3 | . 3 . Energy Bleed 1 | . 1 . Interference 2 | . 2 . Siege Activations . | . . . Robots Corrupted . | . . . Combat Hostiles . | . . . Parts Fried . | . . . Impact Corruptions . | . . . Robots Melted 2 | . 2 . Combat Hostiles 1 | . 1 . Parts Melted 4 | . 4 . Heat Transferred 2110 | . 2110 . Parts Sabotaged . | . . . Parts Stolen . | . . . Parts Stripped . | . . . Power Chain Reactions . | . . . Missiles Intercepted . | . . . Alert | -11 -10 -10 ------- Run | Scr Mat Min Peak Influence 188 | . 188 17 Initial 17 | . . 17 Average 56 | . 68 11 Maximum Alert Level . | . . . Low Security (%) 100 | 100 100 100 Level 1 . | . . . Level 2 . | . . . Level 3 . | . . . Level 4 . | . . . Level 5 . | . . . High Security . | . . . Max Security . | . . . Squads Dispatched 1 | . 1 . Investigation . | . . . Extermination . | . . . Reinforcement 1 | . 1 . Assault . | . . . Garrison . | . . . Intercept . | . . . Searches Triggered . | . . . Construction Impeded . | . . . Haulers Reinforced . | . . . Active Scanning Responses . | . . . Cargo Convoy Interrupts . | . . . Stealth | -11 -10 -10 --------- Run | Scr Mat Min Distress Signals 1 | . 1 . Communications Jammed . | . . . Distress Signals . | . . . Times Spotted 19 | . 11 8 Peak Tracking Total 7 | . 5 7 Tactical Retreats . | . . . Traps | -11 -10 -10 ------- Run | Scr Mat Min Traps Triggered . | . . . Indirectly . | . . . Trap Hack Attempts . | . . . Triggered . | . . . Disarmed . | . . . Reprogrammed . | . . . Reused . | . . . Traps Extracted . | . . . Installed . | . . . Triggered . | . . . Machines | -11 -10 -10 ---------- Run | Scr Mat Min Machines Disabled . | . . . Max in Single Turn . | . . . Machines Sabotaged . | . . . Garrisons Compromised . | . . . Overloaded Fab Kills . | . . . Hacking | -11 -10 -10 --------- Run | Scr Mat Min Machines Accessed 3 | . 3 . Terminals 3 | . 3 . Fabricators . | . . . Repair Stations . | . . . Recycling Units . | . . . Scanalyzers . | . . . Garrison Access . | . . . Total Hacks 6 | . 6 . Successful 2 | . 2 . Failed 4 | . 4 . Catastrophic 1 | . 1 . Database Lockouts . | . . . Manual 5 | . 5 . Terminals 6 | . 6 . Fabricators . | . . . Repair Stations . | . . . Recycling Units . | . . . Scanalyzers . | . . . Garrison Access . | . . . Terminal Hacks 1 | . 1 . Zone Layout 1 | . 1 . Fabricator Hacks . | . . . Repair Station Hacks . | . . . Recycling Unit Hacks . | . . . Scanalyzer . | . . . Garrison Access Hacks . | . . . Unauthorized Hacks 1 | . 1 . Terminals 1 | . 1 . Botnet 1 | . 1 . Fabricators . | . . . Repair Stations . | . . . Recycling Units . | . . . Scanalyzers . | . . . Garrison Access . | . . . Data Cores Recovered . | . . . Used . | . . . Hacking Detections 2 | . 2 . Full Trace Events . | . . . Feedback Events . | . . . Feedback Blocked . | . . . Robot Schematics Acquired . | . . . Robots Built . | . . . Authchips . | . . . Time . | . . . Total Robot Build Rating . | . . . Part Schematics Acquired . | . . . Parts Built . | . . . Authchips . | . . . Time . | . . . Total Part Build Rating . | . . . Parts Repaired . | . . . Time . | . . . Parts Recycled . | . . . Recycled Matter . | . . . Retrieved Matter . | . . . Retrieved Components . | . . . Parts Scanalyzed . | . . . Part Schematics Acquired . | . . . Parts Damaged . | . . . Bothacking | -11 -10 -10 ------------ Run | Scr Mat Min Used RIF Installer . | . . . Robots Hacked . | . . . Non-combat . | . . . Combat . | . . . Robot Hacks Applied . | . . . Relay Couplers Released . | . . . Fabnet Peak Effective % . | . . . Robots Rewired . | . . . Allies Hacked . | . . . Hacks Repelled . | . . . Allies | -11 -10 -10 -------- Run | Scr Mat Min Total Allies . | . . . Largest Group . | . . . Highest-Rated Group . | . . . Highest-Rated Ally . | . . . Total Orders . | . . . Ally Attacks . | . . . Total Damage . | . . . Kills . | . . . Allies Corrupted . | . . . Allies Melted . | . . . Intel | -11 -10 -10 ------- Run | Scr Mat Min Robot Analysis Total . | . . . Derelict Logs Recovered . | . . . Drone Launches . | . . . Drone Recoveries . | . . . Exploration | -11 -10 -10 ------------- Run | Scr Mat Min Turns Passed 742 | 83 600 59 Spaces Moved 386 | 45 302 39 Core 3 | 3 . . Treads 372 | 42 302 28 Legs . | . . . Wheels 11 | . . 11 Hover . | . . . Flight . | . . . Fastest Speed 50 | 50 160 90 Average Speed 157 | 152 160 142 Slowest Speed 160 | 160 160 160 Overloaded Moves . | . . . Propulsion Burnouts . | . . . Robots Hopped . | . . . Cave-ins Triggered . | . . . Exploration Rate (%) 24 | 5 48 20 Regions Visited 2 Branch Regions 1 Pre-discovered Areas . | . . . Known Exits Taken . | . . . Unknown Exits Taken 2 | 1 1 . Scrap Searched . | . . . Spaces Dug . | . . . Terrain Destroyed . | . . . Melee . | . . . Projectile . | . . . AOE . | . . . Terrain Rammed . | . . . Walls Destroyed . | . . . Machines Disabled . | . . . Actions | -11 -10 -10 --------- Run | Scr Mat Min Total 451 | 56 353 42 Wait 11 | . 11 . Move 384 | 44 301 39 Hop . | . . . Pick Up 8 | 6 2 . Fast Attach 8 | 6 2 . Attach 2 | . . 2 Detach 2 | . 2 . Swap 2 | . 1 1 Drop 1 | . 1 . Fire 33 | . 33 . Melee . | . . . Ram . | . . . Kick . | . . . Crush . | . . . Escape Stasis . | . . . Rewire . | . . . Trap . | . . . Miscellaneous . | . . . Route ------- -11/Scrapyard -10/Materials (discovered 2 exits: [*Mat] / [*Min]) -10/Mines History --------- Turn | Location | Event 14 | -11/Scrapyard | Discovered new exit (range 16) 84 | -11/Scrapyard | Entered Materials 279 | -10/Materials | Discovered new exit (range 10) 305 | -10/Materials | Build established: Mutant 438 | -10/Materials | Discovered new exit (range 6) 684 | -10/Materials | Entered Mines 703 | -10/Mines | Assembled infested the area 735 | -10/Mines | Found a hidden stash of uninstalled traps 741 | -10/Mines | Core integrity fell below 50% 743 | -10/Mines | Core integrity fell below 20% 743 | -10/Mines | Destroyed by as-05210 with Assembled Blade Last Messages --------------- 00593_ R-06 Scavenger collects Broken Lgt. Treads. 00597_ R-06 Scavenger collects Datajack. 00601_ R-06 Scavenger collects Lrg. Storage Unit. 00607_ Signal Interpreter melted. 00607_ W-16 Scout destroyed. 00609_ K-01 Serf collects debris. 00680_ K-01 Serf cleans the Terminal. LOCATION=UNKNOWN GOAL=ESCAPE 00685_ K-01 Serf collects debris. 00703_ ALERT: Infestation in the mines, dispatching Demolisher response squad. 00718_ as-65650 sneak attacks. 00718_ K-01 Serf destroyed. 00719_ Lgt. Ion Engine destroyed. 00727_ Lgt. Treads destroyed. 00728_ Med. Laser destroyed. 00735_ A stash of uninstalled traps is collected here! 00738_ Lgt. Treads destroyed. 00741_ Wheel destroyed. Map ----- +----------------------------------------------------+ | ????????????????????????????????? #???????"" ? | | ????????????????????????????????? #???????"" ? | | ?????????????????????????????????? #???????"" ? | | ?????????????????????????????????? ???????? ? | | ?????????????????????????????????? ???????? ? | | ?????????????????????????????????? ???????? ? | | ?????????????????????????##???????# ????????# #? | | ????????????????????????? ??????# #????????# #? | | ?????????????????????????# ??????# #????????# #? | | ?????????????????????????# ??????# #????????# #? | | ?????????????????????????# #?????# ########## #? | | ?????????????????????##??# #?????# #? | | ?????????????????????# ### #?????# %########## #? | | ?????????????????????# #?????# =#??????### ## | | ?????????????????????# ###??## ##?????# | | ??????????????????????# #### #?????# "" | | ???????????????????????# ## #?????# "" | | ???????????????????????# #?????# "" | | ???????????????????????# ##?????# | | ???????????????????????# ######??????###### | | ???????????????????????# a ##????????????????? | | ???????????????????????# a ##?????????????????? | | ???????????????????????# ###??????????????????? | | ???????????????????????# a##????????????????????? | | ???????????????????????# ##????????????????????? | | ??????????????????????##a@ #####????????????????? | | ??????????????????????# a ##???????????????? | | ??????????????????????#&a #???????????????? | | ??????????????????????# a #???????????????? | | ??????????????????????#& ##???????????????? | | ?????????????????????# ##????????????????? | | ????????????????????# ##?????????????????? | | ???????????????????# #??????????????????? | | ??????????????????# #??????????????????? | | ??????????????????# #??????????????????? | | ??????????????????## ## ##??????????????????? | | ???????????????????#######?###???????????????????? | | ?????????????????????????????????????????????????? | | ?????????????????????????????????????????????????? | | | | | | | | | | | | | | | | | | | | | | | +----------------------------------------------------+ Best States ------------- Heat Dissipation 25 Energy Generation 10 Energy Capacity 125 Matter Stores 300 Matter Capacity 300 Sight Range 16 Terrain Scan Density 10 Evasion (%) 40 Recoil Reduction 2 Item Schematics ----------------- None Robot Schematics ------------------ None Fabricated ------------ Nothing Alien Tech Used ----------------- None Achievements -------------- None Challenges ------------ None Game ------ Seed SignalBlastSystem Manual? 0 Play Time 00:11:58 Cumulative 55.7 hours Start 2022.05.21 @ 21:31:31 End 2022.05.21 @ 21:42:37 Sessions 1 Manual Loads 0 Difficulty Rogue Special Mode None Game No. 40 Rogue 21 Adventurer 16 Explorer 3 Win Type - Total 2 Types 2/0/0/0/0/0/0/0/0 Lore% 34 Gallery% 43 Achievement% 35 Wizard Run 0 Options --------- ASCII 1 Keyboard 1 Movement Numpad Keybinds 0 Fullscreen 1 Font 18/TerminusBold Map View 76x50 Tactical HUD 1 Map Filters NONE Filters NONE Steam X RUN: 433aaf7f-eccf-4188-bb87-95b0e3bcbd5c